[Event "Titled Tuesday Blitz March 29 Late 2022"]
[White "Federzoni, Enzo"]
[Black "Hardaway, Brewington"]
[WhiteFideId "2173301"]
[BlackFideId "30941849"]
[WhiteElo "1956"]
[BlackElo "1768"]
[Result "0-1"]
[Round "04"]
[TimeControl "180+1"]
[Date "2022.03.30"]
[WhiteClock "0:01:15"]
[BlackClock "0:00:50"]

1. c4 {[%clk 0:03:00]}  Nf6 {[%clk 0:02:59]} 2. Nc3 {[%clk 0:03:00]}  e6 {[%clk 0:02:59]} 3. d4 {[%clk 0:02:56]}  c5 {[%clk 0:02:56]} 4. Nf3 {[%clk 0:02:54]}  a6 {[%clk 0:02:54]} 5. g3 {[%clk 0:02:54]}  d5 {[%clk 0:02:49]} 6. cxd5 {[%clk 0:02:53]}  exd5 {[%clk 0:02:49]} 7. Bg2 {[%clk 0:02:53]}  Nc6 {[%clk 0:02:48]} 8. O-O {[%clk 0:02:53]}  c4 {[%clk 0:02:47]} 9. Re1 {[%clk 0:02:51]}  Bb4 {[%clk 0:02:46]} 10. Qc2 {[%clk 0:02:47]}  O-O {[%clk 0:02:44]} 11. Bd2 {[%clk 0:02:45]}  Bxc3 {[%clk 0:02:40]} 12. Bxc3 {[%clk 0:02:44]}  Ne4 {[%clk 0:02:40]} 13. Nd2 {[%clk 0:02:44]}  Nxc3 {[%clk 0:02:36]} 14. bxc3 {[%clk 0:02:45]}  b5 {[%clk 0:02:36]} 15. e4 {[%clk 0:02:44]}  Be6 {[%clk 0:02:34]} 16. exd5 {[%clk 0:02:40]}  Bxd5 {[%clk 0:02:35]} 17. Ne4 {[%clk 0:02:40]}  Ne7 {[%clk 0:02:31]} 18. h4 {[%clk 0:02:37]}  h6 {[%clk 0:02:25]} 19. a4 {[%clk 0:02:30]}  Rb8 {[%clk 0:02:23]} 20. axb5 {[%clk 0:02:30]}  axb5 {[%clk 0:02:18]} 21. Ra7 {[%clk 0:02:31]}  Nc6 {[%clk 0:02:11]} 22. Ra6 {[%clk 0:02:27]}  b4 {[%clk 0:02:06]} 23. Nc5 {[%clk 0:01:54]}  b3 {[%clk 0:01:49]} 24. Qf5 {[%clk 0:01:49]}  Bxg2 {[%clk 0:01:42]} 25. Kxg2 {[%clk 0:01:49]}  Ne7 {[%clk 0:01:39]} 26. Qe4 {[%clk 0:01:46]}  Qd5 {[%clk 0:01:34]} 27. Qxd5 {[%clk 0:01:44]}  Nxd5 {[%clk 0:01:32]} 28. Nd7 {[%clk 0:01:45]}  Rfe8 {[%clk 0:01:29]} 29. Rb1 {[%clk 0:01:35]}  Nxc3 {[%clk 0:01:27]} 30. Rb2 {[%clk 0:01:35]}  Rbd8 {[%clk 0:01:20]} 31. Ne5 {[%clk 0:01:33]}  Rxd4 {[%clk 0:01:17]} 32. f4 {[%clk 0:01:33]}  f6 {[%clk 0:01:02]} 33. Nc6 {[%clk 0:01:23]}  Rde4 {[%clk 0:01:00]} 34. Kf3 {[%clk 0:01:21]}  h5 {[%clk 0:00:58]} 35. Na5 {[%clk 0:01:16]}  Re3+ {[%clk 0:00:52]} 36. Kf2 {[%clk 0:01:17]}  Nd1+ {[%clk 0:00:49]} 37. Kf1 {[%clk 0:01:15]}  Nxb2 {[%clk 0:00:50]} 0-1


[Site "https://www.chess.com"]

[Event "Titled Tuesday Blitz March 29 Late 2022"]
[White "Fernandez, Daniel Howard"]
[Black "Vachier-Lagrave, Maxime"]
[WhiteFideId "5801605"]
[BlackFideId "623539"]
[WhiteElo "2466"]
[BlackElo "2813"]
[Result "1-0"]
[Round "04"]
[TimeControl "180+1"]
[Date "2022.03.29"]
[WhiteClock "0:01:17"]
[BlackClock "0:00:58"]

1. e4 {[%clk 0:03:00]}  c5 {[%clk 0:02:53]} 2. Nf3 {[%clk 0:03:01]}  d6 {[%clk 0:02:53]} 3. d4 {[%clk 0:03:02]}  cxd4 {[%clk 0:02:53]} 4. Nxd4 {[%clk 0:03:02]}  Nf6 {[%clk 0:02:54]} 5. Nc3 {[%clk 0:03:03]}  Nc6 {[%clk 0:02:54]} 6. Bg5 {[%clk 0:03:02]}  e6 {[%clk 0:02:54]} 7. Qd2 {[%clk 0:02:58]}  a6 {[%clk 0:02:53]} 8. O-O-O {[%clk 0:02:58]}  Bd7 {[%clk 0:02:53]} 9. f4 {[%clk 0:02:56]}  Be7 {[%clk 0:02:48]} 10. Nf3 {[%clk 0:02:51]}  b5 {[%clk 0:02:46]} 11. Bxf6 {[%clk 0:02:52]}  gxf6 {[%clk 0:02:47]} 12. Kb1 {[%clk 0:02:52]}  Qa5 {[%clk 0:02:47]} 13. f5 {[%clk 0:02:44]}  b4 {[%clk 0:02:47]} 14. Ne2 {[%clk 0:02:44]}  e5 {[%clk 0:02:45]} 15. Qh6 {[%clk 0:02:33]}  Qc7 {[%clk 0:02:32]} 16. Ng3 {[%clk 0:02:33]}  a5 {[%clk 0:02:21]} 17. Nh5 {[%clk 0:02:32]}  O-O-O {[%clk 0:02:14]} 18. Nxf6 {[%clk 0:02:32]}  Kb8 {[%clk 0:02:08]} 19. Nxd7+ {[%clk 0:02:29]}  Rxd7 {[%clk 0:02:07]} 20. Qg7 {[%clk 0:02:26]}  Rc8 {[%clk 0:02:06]} 21. Qxf7 {[%clk 0:02:24]}  Nd4 {[%clk 0:01:53]} 22. Nxd4 {[%clk 0:02:15]}  exd4 {[%clk 0:01:53]} 23. Bd3 {[%clk 0:02:15]}  a4 {[%clk 0:01:49]} 24. Qd5 {[%clk 0:02:14]}  Qb6 {[%clk 0:01:47]} 25. Qb5 {[%clk 0:02:13]}  Qxb5 {[%clk 0:01:38]} 26. Bxb5 {[%clk 0:02:14]}  Ra7 {[%clk 0:01:38]} 27. Rxd4 {[%clk 0:02:13]}  Ra5 {[%clk 0:01:36]} 28. Bd3 {[%clk 0:02:07]}  b3 {[%clk 0:01:36]} 29. cxb3 {[%clk 0:02:04]}  axb3 {[%clk 0:01:37]} 30. axb3 {[%clk 0:02:05]}  Rc7 {[%clk 0:01:28]} 31. Rb4+ {[%clk 0:02:03]}  Kc8 {[%clk 0:01:26]} 32. Rc4 {[%clk 0:02:01]}  Bf6 {[%clk 0:01:25]} 33. Rhc1 {[%clk 0:01:59]}  Rxc4 {[%clk 0:01:24]} 34. Rxc4+ {[%clk 0:01:48]}  Kb7 {[%clk 0:01:21]} 35. Rb4+ {[%clk 0:01:46]}  Kc7 {[%clk 0:01:21]} 36. Bc4 {[%clk 0:01:46]}  Be5 {[%clk 0:01:12]} 37. Bd5 {[%clk 0:01:45]}  Ra7 {[%clk 0:01:11]} 38. h4 {[%clk 0:01:41]}  Kc8 {[%clk 0:01:08]} 39. g4 {[%clk 0:01:31]}  h6 {[%clk 0:01:07]} 40. g5 {[%clk 0:01:30]}  hxg5 {[%clk 0:01:06]} 41. hxg5 {[%clk 0:01:31]}  Rh7 {[%clk 0:01:06]} 42. Rc4+ {[%clk 0:01:27]}  Kd8 {[%clk 0:01:06]} 43. f6 {[%clk 0:01:26]}  Rh5 {[%clk 0:01:03]} 44. f7 {[%clk 0:01:24]}  Bg7 {[%clk 0:00:58]} 45. Ra4 {[%clk 0:01:17]} 1-0


[Site "https://www.chess.com"]

[Event "Titled Tuesday Blitz March 29 Late 2022"]
[White "Godzwon, Iwo"]
[Black "Riazantsev, Alexander"]
[WhiteFideId "21802483"]
[BlackFideId "4125029"]
[WhiteElo "2201"]
[BlackElo "2595"]
[Result "0-1"]
[Round "04"]
[TimeControl "180+1"]
[Date "2022.03.30"]
[WhiteClock "0:00:08"]
[BlackClock "0:01:12"]

1. e4 {[%clk 0:03:00]}  e5 {[%clk 0:02:59]} 2. Nf3 {[%clk 0:03:01]}  Nc6 {[%clk 0:03:00]} 3. Bb5 {[%clk 0:02:59]}  a6 {[%clk 0:03:00]} 4. Ba4 {[%clk 0:02:59]}  Nf6 {[%clk 0:03:00]} 5. O-O {[%clk 0:02:58]}  b5 {[%clk 0:03:01]} 6. Bb3 {[%clk 0:02:58]}  Bb7 {[%clk 0:03:01]} 7. Re1 {[%clk 0:02:45]}  Bc5 {[%clk 0:02:59]} 8. c3 {[%clk 0:02:45]}  d6 {[%clk 0:02:59]} 9. d4 {[%clk 0:02:44]}  Bb6 {[%clk 0:02:59]} 10. Be3 {[%clk 0:02:36]}  O-O {[%clk 0:02:58]} 11. Nbd2 {[%clk 0:02:36]}  h6 {[%clk 0:02:57]} 12. h3 {[%clk 0:02:32]}  Rb8 {[%clk 0:02:57]} 13. a3 {[%clk 0:02:16]}  Re8 {[%clk 0:02:57]} 14. d5 {[%clk 0:02:14]}  Ne7 {[%clk 0:02:57]} 15. Bxb6 {[%clk 0:02:11]}  cxb6 {[%clk 0:02:58]} 16. Nf1 {[%clk 0:02:10]}  Ng6 {[%clk 0:02:57]} 17. Ng3 {[%clk 0:02:10]}  Bc8 {[%clk 0:02:57]} 18. Qd2 {[%clk 0:01:52]}  Bd7 {[%clk 0:02:55]} 19. Bd1 {[%clk 0:01:51]}  Rf8 {[%clk 0:02:54]} 20. Be2 {[%clk 0:01:51]}  Nh7 {[%clk 0:02:53]} 21. Bf1 {[%clk 0:01:46]}  Rc8 {[%clk 0:02:48]} 22. a4 {[%clk 0:01:43]}  bxa4 {[%clk 0:02:47]} 23. Bxa6 {[%clk 0:01:43]}  Rc7 {[%clk 0:02:36]} 24. Nf5 {[%clk 0:01:30]}  Qf6 {[%clk 0:02:27]} 25. Bd3 {[%clk 0:01:15]}  Nf4 {[%clk 0:02:27]} 26. Bc2 {[%clk 0:01:15]}  b5 {[%clk 0:02:27]} 27. Kh2 {[%clk 0:01:12]}  g6 {[%clk 0:01:59]} 28. Nxh6+ {[%clk 0:01:08]}  Kg7 {[%clk 0:01:59]} 29. Ng4 {[%clk 0:01:08]}  Bxg4 {[%clk 0:01:59]} 30. hxg4 {[%clk 0:01:08]}  Ng5 {[%clk 0:02:00]} 31. Rh1 {[%clk 0:00:29]}  Rh8+ {[%clk 0:01:39]} 32. Kg3 {[%clk 0:00:29]}  Rcc8 {[%clk 0:01:34]} 33. Qe3 {[%clk 0:00:23]}  b4 {[%clk 0:01:22]} 34. Nxg5 {[%clk 0:00:11]}  Qxg5 {[%clk 0:01:22]} 35. f3 {[%clk 0:00:12]}  bxc3 {[%clk 0:01:19]} 36. Ra2 {[%clk 0:00:11]}  cxb2 {[%clk 0:01:18]} 37. Rxh8 {[%clk 0:00:09]}  Rxh8 {[%clk 0:01:14]} 38. Kf2 {[%clk 0:00:08]}  Rh2 {[%clk 0:01:12]} 0-1


[Site "https://www.chess.com"]

[Event "Titled Tuesday Blitz March 29 Late 2022"]
[White "Golubev, Mikhail"]
[Black "Burke, Paul"]
[WhiteFideId "14100983"]
[BlackFideId "2605767"]
[WhiteElo "2374"]
[BlackElo "1863"]
[Result "1-0"]
[Round "04"]
[TimeControl "180+1"]
[Date "2022.03.30"]
[WhiteClock "0:00:44"]
[BlackClock "0:01:11"]

1. d4 {[%clk 0:02:56]}  Nf6 {[%clk 0:02:57]} 2. c4 {[%clk 0:02:56]}  c5 {[%clk 0:02:57]} 3. d5 {[%clk 0:02:54]}  Ne4 {[%clk 0:02:57]} 4. f3 {[%clk 0:02:39]}  Qa5+ {[%clk 0:02:56]} 5. Nd2 {[%clk 0:02:37]}  Nf6 {[%clk 0:02:55]} 6. e4 {[%clk 0:02:32]}  d6 {[%clk 0:02:55]} 7. Bd3 {[%clk 0:02:27]}  g6 {[%clk 0:02:55]} 8. f4 {[%clk 0:02:20]}  Bg7 {[%clk 0:02:55]} 9. Nf3 {[%clk 0:02:20]}  Na6 {[%clk 0:02:55]} 10. O-O {[%clk 0:02:19]}  O-O {[%clk 0:02:54]} 11. e5 {[%clk 0:02:13]}  dxe5 {[%clk 0:02:54]} 12. fxe5 {[%clk 0:02:12]}  Ng4 {[%clk 0:02:52]} 13. Re1 {[%clk 0:02:06]}  Qd8 {[%clk 0:02:24]} 14. h3 {[%clk 0:02:02]}  Nh6 {[%clk 0:02:23]} 15. Ne4 {[%clk 0:01:50]}  Nf5 {[%clk 0:02:17]} 16. Bf4 {[%clk 0:01:40]}  h6 {[%clk 0:02:11]} 17. g4 {[%clk 0:01:39]}  Nd4 {[%clk 0:02:10]} 18. Nxd4 {[%clk 0:01:32]}  cxd4 {[%clk 0:02:10]} 19. a3 {[%clk 0:01:22]}  h5 {[%clk 0:02:05]} 20. gxh5 {[%clk 0:01:16]}  Bxh3 {[%clk 0:02:04]} 21. hxg6 {[%clk 0:01:12]}  fxg6 {[%clk 0:02:04]} 22. Qd2 {[%clk 0:01:10]}  e6 {[%clk 0:01:46]} 23. Ng5 {[%clk 0:01:01]}  Bf5 {[%clk 0:01:26]} 24. Qh2 {[%clk 0:00:55]}  Re8 {[%clk 0:01:18]} 25. Qh7+ {[%clk 0:00:51]}  Kf8 {[%clk 0:01:17]} 26. Bxf5 {[%clk 0:00:50]}  exf5 {[%clk 0:01:15]} 27. Qxg6 {[%clk 0:00:46]}  Qxd5 {[%clk 0:01:11]} 28. cxd5 {[%clk 0:00:44]} 1-0


[Site "https://www.chess.com"]

[Event "Titled Tuesday Blitz March 29 Late 2022"]
[White "Hambleton, Aman"]
[Black "Lehtosaari, Mauri"]
[WhiteFideId "2606577"]
[BlackFideId "501999"]
[WhiteElo "2552"]
[BlackElo "2510"]
[Result "1/2-1/2"]
[Round "04"]
[TimeControl "180+1"]
[Date "2022.03.29"]
[WhiteClock "0:00:02"]
[BlackClock "0:00:17"]

1. d4 {[%clk 0:02:58]}  d5 {[%clk 0:03:00]} 2. Bf4 {[%clk 0:02:57]}  c5 {[%clk 0:03:00]} 3. e3 {[%clk 0:02:57]}  Nc6 {[%clk 0:02:57]} 4. c3 {[%clk 0:02:58]}  Nf6 {[%clk 0:02:57]} 5. Nd2 {[%clk 0:02:56]}  Bf5 {[%clk 0:02:56]} 6. Qb3 {[%clk 0:02:56]}  Qd7 {[%clk 0:02:56]} 7. Ngf3 {[%clk 0:02:53]}  c4 {[%clk 0:02:56]} 8. Qd1 {[%clk 0:02:54]}  e6 {[%clk 0:02:55]} 9. Be2 {[%clk 0:02:49]}  h6 {[%clk 0:02:55]} 10. O-O {[%clk 0:02:40]}  Bd6 {[%clk 0:02:52]} 11. Bxd6 {[%clk 0:02:34]}  Qxd6 {[%clk 0:02:53]} 12. b3 {[%clk 0:02:34]}  b5 {[%clk 0:02:34]} 13. a4 {[%clk 0:02:32]}  b4 {[%clk 0:02:35]} 14. bxc4 {[%clk 0:02:30]}  bxc3 {[%clk 0:02:35]} 15. c5 {[%clk 0:02:02]}  Qc7 {[%clk 0:02:12]} 16. Bb5 {[%clk 0:00:35]}  O-O {[%clk 0:02:07]} 17. Nb3 {[%clk 0:00:20]}  a5 {[%clk 0:01:39]} 18. Rc1 {[%clk 0:00:13]}  c2 {[%clk 0:01:38]} 19. Qe2 {[%clk 0:00:10]}  Nb4 {[%clk 0:01:38]} 20. Ne1 {[%clk 0:00:07]}  e5 {[%clk 0:01:34]} 21. f3 {[%clk 0:00:04]}  exd4 {[%clk 0:01:33]} 22. exd4 {[%clk 0:00:05]}  Qf4 {[%clk 0:01:19]} 23. Qd2 {[%clk 0:00:05]}  Qxd2 {[%clk 0:01:07]} 24. Nxd2 {[%clk 0:00:06]}  Na2 {[%clk 0:01:08]} 25. Rxc2 {[%clk 0:00:07]}  Bxc2 {[%clk 0:01:08]} 26. Nxc2 {[%clk 0:00:07]}  Nb4 {[%clk 0:01:09]} 27. Nxb4 {[%clk 0:00:02]}  axb4 {[%clk 0:01:09]} 28. Rb1 {[%clk 0:00:03]}  Ne8 {[%clk 0:00:56]} 29. Rxb4 {[%clk 0:00:03]}  Nc7 {[%clk 0:00:57]} 30. Kf2 {[%clk 0:00:03]}  Rfb8 {[%clk 0:00:55]} 31. Nb1 {[%clk 0:00:02]}  Ne6 {[%clk 0:00:52]} 32. Nc3 {[%clk 0:00:02]}  Rd8 {[%clk 0:00:52]} 33. g3 {[%clk 0:00:02]}  g6 {[%clk 0:00:52]} 34. Bc6 {[%clk 0:00:03]}  Rab8 {[%clk 0:00:50]} 35. Rxb8 {[%clk 0:00:03]}  Rxb8 {[%clk 0:00:51]} 36. Bb5 {[%clk 0:00:03]}  Nxd4 {[%clk 0:00:51]} 37. Ke3 {[%clk 0:00:02]}  Ne6 {[%clk 0:00:49]} 38. Nxd5 {[%clk 0:00:02]}  Nxc5 {[%clk 0:00:48]} 39. Kd4 {[%clk 0:00:02]}  Ne6+ {[%clk 0:00:45]} 40. Kc4 {[%clk 0:00:03]}  Kg7 {[%clk 0:00:44]} 41. a5 {[%clk 0:00:03]}  Rc8+ {[%clk 0:00:43]} 42. Kb4 {[%clk 0:00:03]}  Nd4 {[%clk 0:00:41]} 43. Nb6 {[%clk 0:00:02]}  Rc2 {[%clk 0:00:39]} 44. Bc4 {[%clk 0:00:02]}  Nc6+ {[%clk 0:00:34]} 45. Kb3 {[%clk 0:00:02]}  Rxh2 {[%clk 0:00:32]} 46. a6 {[%clk 0:00:03]}  Rh3 {[%clk 0:00:31]} 47. g4 {[%clk 0:00:02]}  Rxf3+ {[%clk 0:00:30]} 48. Ka4 {[%clk 0:00:03]}  Na7 {[%clk 0:00:29]} 49. Nd5 {[%clk 0:00:02]}  Rg3 {[%clk 0:00:27]} 50. Ka5 {[%clk 0:00:02]}  Rxg4 {[%clk 0:00:28]} 51. Bb3 {[%clk 0:00:02]}  Rg5 {[%clk 0:00:28]} 52. Kb6 {[%clk 0:00:02]}  Nc8+ {[%clk 0:00:28]} 53. Kc7 {[%clk 0:00:02]}  Na7 {[%clk 0:00:28]} 54. Kb6 {[%clk 0:00:02]}  Nc8+ {[%clk 0:00:28]} 55. Kb7 {[%clk 0:00:02]}  Nd6+ {[%clk 0:00:27]} 56. Kc6 {[%clk 0:00:03]}  Nc8 {[%clk 0:00:28]} 57. Kb7 {[%clk 0:00:02]}  Nd6+ {[%clk 0:00:22]} 58. Kc6 {[%clk 0:00:02]}  Nc8 {[%clk 0:00:17]} 59. Kb7 {[%clk 0:00:02]} 1/2-1/2


[Site "https://www.chess.com"]

[Event "Titled Tuesday Blitz March 29 Late 2022"]
[White "Harish, Neeraj"]
[Black "Brizzi, Milagros Tatiana"]
[WhiteFideId "30958130"]
[BlackFideId "128350"]
[WhiteElo "1574"]
[BlackElo "1844"]
[Result "1-0"]
[Round "04"]
[TimeControl "180+1"]
[Date "2022.03.30"]
[WhiteClock "0:00:47"]
[BlackClock "0:00:03"]

1. e4 {[%clk 0:03:00]}  c6 {[%clk 0:02:59]} 2. d4 {[%clk 0:03:00]}  d5 {[%clk 0:02:51]} 3. e5 {[%clk 0:02:59]}  Bf5 {[%clk 0:02:51]} 4. Nd2 {[%clk 0:02:59]}  e6 {[%clk 0:02:51]} 5. Nb3 {[%clk 0:03:00]}  Ne7 {[%clk 0:02:48]} 6. Nf3 {[%clk 0:02:59]}  Nc8 {[%clk 0:02:46]} 7. Be2 {[%clk 0:02:57]}  Be7 {[%clk 0:02:46]} 8. O-O {[%clk 0:02:54]}  O-O {[%clk 0:02:45]} 9. a4 {[%clk 0:02:53]}  b6 {[%clk 0:02:41]} 10. Bd2 {[%clk 0:02:48]}  c5 {[%clk 0:02:40]} 11. c4 {[%clk 0:02:33]}  Nc6 {[%clk 0:02:36]} 12. cxd5 {[%clk 0:02:25]}  Qxd5 {[%clk 0:02:34]} 13. dxc5 {[%clk 0:02:10]}  bxc5 {[%clk 0:02:22]} 14. Be3 {[%clk 0:01:52]}  Qxd1 {[%clk 0:02:08]} 15. Bxd1 {[%clk 0:01:44]}  c4 {[%clk 0:02:04]} 16. Nbd4 {[%clk 0:01:43]}  Bd3 {[%clk 0:02:00]} 17. Nxc6 {[%clk 0:01:40]}  Bxf1 {[%clk 0:02:00]} 18. Kxf1 {[%clk 0:01:41]}  a5 {[%clk 0:01:43]} 19. Nxe7+ {[%clk 0:01:36]}  Nxe7 {[%clk 0:01:44]} 20. Bc5 {[%clk 0:01:37]}  Rfe8 {[%clk 0:01:43]} 21. Nd4 {[%clk 0:01:34]}  Nd5 {[%clk 0:01:41]} 22. Bf3 {[%clk 0:01:33]}  Rab8 {[%clk 0:01:39]} 23. Nb5 {[%clk 0:01:31]}  Rec8 {[%clk 0:01:26]} 24. Bd6 {[%clk 0:01:29]}  Rb6 {[%clk 0:01:11]} 25. Bxd5 {[%clk 0:01:27]}  exd5 {[%clk 0:01:11]} 26. Rd1 {[%clk 0:01:28]}  f6 {[%clk 0:00:58]} 27. exf6 {[%clk 0:01:21]}  gxf6 {[%clk 0:00:59]} 28. Rxd5 {[%clk 0:01:21]}  Kf7 {[%clk 0:00:36]} 29. Ke2 {[%clk 0:01:07]}  Ke6 {[%clk 0:00:35]} 30. Rc5 {[%clk 0:01:07]}  Re8 {[%clk 0:00:09]} 31. Bg3 {[%clk 0:01:00]}  Kd7+ {[%clk 0:00:08]} 32. Kd2 {[%clk 0:00:59]}  Rd8 {[%clk 0:00:07]} 33. Kc3 {[%clk 0:00:58]}  Re8 {[%clk 0:00:06]} 34. Kxc4 {[%clk 0:00:49]}  Re2 {[%clk 0:00:06]} 35. Kc3 {[%clk 0:00:49]}  Re1 {[%clk 0:00:05]} 36. Rc7+ {[%clk 0:00:47]}  Ke6 {[%clk 0:00:05]} 37. Rxh7 {[%clk 0:00:46]}  Rc1+ {[%clk 0:00:04]} 38. Kb3 {[%clk 0:00:46]}  Rbc6 {[%clk 0:00:03]} 39. Nd4+ {[%clk 0:00:46]}  Kd5 {[%clk 0:00:03]} 40. Nxc6 {[%clk 0:00:46]}  Kxc6 {[%clk 0:00:03]} 41. Rc7+ {[%clk 0:00:46]}  Kd5 {[%clk 0:00:03]} 42. Rxc1 {[%clk 0:00:47]}  Ke6 {[%clk 0:00:03]} 1-0


[Site "https://www.chess.com"]

[Event "Titled Tuesday Blitz March 29 Late 2022"]
[White "Hnydiuk, Aleksander"]
[Black "Winkels, Marcel"]
[WhiteFideId "1109057"]
[BlackFideId "1003887"]
[WhiteElo "2374"]
[BlackElo "1900"]
[Result "1-0"]
[Round "04"]
[TimeControl "180+1"]
[Date "2022.03.30"]
[WhiteClock "0:01:22"]
[BlackClock "0:00:39"]

1. Nf3 {[%clk 0:03:00]}  Nf6 {[%clk 0:02:58]} 2. c4 {[%clk 0:03:00]}  c5 {[%clk 0:02:57]} 3. g3 {[%clk 0:02:57]}  e6 {[%clk 0:02:57]} 4. Bg2 {[%clk 0:02:57]}  d5 {[%clk 0:02:56]} 5. cxd5 {[%clk 0:02:57]}  exd5 {[%clk 0:02:56]} 6. d4 {[%clk 0:02:57]}  cxd4 {[%clk 0:02:56]} 7. Nxd4 {[%clk 0:02:58]}  Nc6 {[%clk 0:02:56]} 8. O-O {[%clk 0:02:58]}  Bc5 {[%clk 0:02:55]} 9. Nxc6 {[%clk 0:02:57]}  bxc6 {[%clk 0:02:54]} 10. Qc2 {[%clk 0:02:57]}  Qb6 {[%clk 0:02:44]} 11. Nc3 {[%clk 0:02:56]}  Bd6 {[%clk 0:02:27]} 12. Be3 {[%clk 0:02:45]}  Qc7 {[%clk 0:02:24]} 13. Rac1 {[%clk 0:02:43]}  Be6 {[%clk 0:02:18]} 14. Nb5 {[%clk 0:02:39]}  cxb5 {[%clk 0:02:10]} 15. Qxc7 {[%clk 0:02:39]}  Bxc7 {[%clk 0:02:09]} 16. Rxc7 {[%clk 0:02:40]}  O-O {[%clk 0:02:08]} 17. Bxa7 {[%clk 0:02:27]}  Rfd8 {[%clk 0:01:56]} 18. a3 {[%clk 0:02:09]}  Ne4 {[%clk 0:01:51]} 19. Rd1 {[%clk 0:02:02]}  Rac8 {[%clk 0:01:36]} 20. Rdc1 {[%clk 0:01:51]}  Rxc7 {[%clk 0:01:29]} 21. Rxc7 {[%clk 0:01:52]}  Nd6 {[%clk 0:01:28]} 22. Bd4 {[%clk 0:01:46]}  Nc4 {[%clk 0:01:26]} 23. Rb7 {[%clk 0:01:25]}  Nd6 {[%clk 0:01:24]} 24. Rb6 {[%clk 0:01:24]}  f6 {[%clk 0:00:45]} 25. Bc5 {[%clk 0:01:23]}  Ne4 {[%clk 0:00:41]} 26. Bxe4 {[%clk 0:01:22]}  dxe4 {[%clk 0:00:39]} 27. Rxe6 {[%clk 0:01:22]} 1-0


[Site "https://www.chess.com"]

[Event "Titled Tuesday Blitz March 29 Late 2022"]
[White "Ider, Borya"]
[Black "Dubov, Daniil"]
[WhiteFideId "4901134"]
[BlackFideId "24126055"]
[WhiteElo "2512"]
[BlackElo "2791"]
[Result "0-1"]
[Round "04"]
[TimeControl "180+1"]
[Date "2022.03.29"]
[WhiteClock "0:00:04"]
[BlackClock "0:00:12"]

1. c3 {[%clk 0:03:00]}  Nf6 {[%clk 0:02:57]} 2. Qc2 {[%clk 0:03:00]}  d5 {[%clk 0:02:55]} 3. Nf3 {[%clk 0:02:58]}  Nc6 {[%clk 0:02:52]} 4. d4 {[%clk 0:02:57]}  g6 {[%clk 0:02:51]} 5. Bf4 {[%clk 0:02:55]}  Bf5 {[%clk 0:02:48]} 6. Qb3 {[%clk 0:02:55]}  Rb8 {[%clk 0:02:47]} 7. Nbd2 {[%clk 0:02:55]}  Bg7 {[%clk 0:02:47]} 8. e3 {[%clk 0:02:49]}  O-O {[%clk 0:02:47]} 9. h3 {[%clk 0:02:49]}  Na5 {[%clk 0:02:41]} 10. Qa4 {[%clk 0:02:46]}  b6 {[%clk 0:02:40]} 11. Be2 {[%clk 0:02:41]}  Bd7 {[%clk 0:02:28]} 12. Qd1 {[%clk 0:02:39]}  Nb7 {[%clk 0:02:28]} 13. Ba6 {[%clk 0:02:33]}  Nd6 {[%clk 0:02:28]} 14. Ne5 {[%clk 0:02:33]}  Be8 {[%clk 0:02:24]} 15. Bd3 {[%clk 0:02:29]}  c5 {[%clk 0:02:18]} 16. O-O {[%clk 0:02:29]}  Rc8 {[%clk 0:02:18]} 17. a4 {[%clk 0:02:27]}  Nd7 {[%clk 0:02:15]} 18. Nef3 {[%clk 0:02:23]}  Nf6 {[%clk 0:02:12]} 19. Ne5 {[%clk 0:02:20]}  Nfe4 {[%clk 0:02:08]} 20. a5 {[%clk 0:02:06]}  Nxd2 {[%clk 0:02:07]} 21. Qxd2 {[%clk 0:02:04]}  b5 {[%clk 0:02:06]} 22. a6 {[%clk 0:01:59]}  c4 {[%clk 0:02:01]} 23. Bc2 {[%clk 0:01:57]}  Ne4 {[%clk 0:01:53]} 24. Qe2 {[%clk 0:01:52]}  Qb6 {[%clk 0:01:46]} 25. f3 {[%clk 0:01:47]}  Nd6 {[%clk 0:01:43]} 26. Kh1 {[%clk 0:01:44]}  b4 {[%clk 0:01:32]} 27. e4 {[%clk 0:01:41]}  b3 {[%clk 0:01:30]} 28. Bb1 {[%clk 0:01:41]}  e6 {[%clk 0:01:27]} 29. Ng4 {[%clk 0:01:35]}  h5 {[%clk 0:01:25]} 30. Nf2 {[%clk 0:01:18]}  Bb5 {[%clk 0:01:22]} 31. e5 {[%clk 0:01:18]}  Nf5 {[%clk 0:01:20]} 32. Qd2 {[%clk 0:01:14]}  h4 {[%clk 0:01:18]} 33. Ng4 {[%clk 0:01:12]}  Bxa6 {[%clk 0:01:15]} 34. Nf6+ {[%clk 0:01:11]}  Bxf6 {[%clk 0:00:56]} 35. exf6 {[%clk 0:01:11]}  Kh7 {[%clk 0:00:52]} 36. Bxf5 {[%clk 0:01:07]}  exf5 {[%clk 0:00:52]} 37. Be5 {[%clk 0:01:04]}  Rh8 {[%clk 0:00:50]} 38. Qf4 {[%clk 0:00:54]}  Kg8 {[%clk 0:00:49]} 39. Bd6 {[%clk 0:00:54]}  Bb5 {[%clk 0:00:43]} 40. Rfe1 {[%clk 0:00:54]}  Re8 {[%clk 0:00:31]} 41. Rxe8+ {[%clk 0:00:45]}  Bxe8 {[%clk 0:00:32]} 42. Qe5 {[%clk 0:00:45]}  Kh7 {[%clk 0:00:25]} 43. Bc5 {[%clk 0:00:35]}  Qe6 {[%clk 0:00:17]} 44. Qxe6 {[%clk 0:00:33]}  fxe6 {[%clk 0:00:18]} 45. Rxa7+ {[%clk 0:00:32]}  Kh6 {[%clk 0:00:19]} 46. f7 {[%clk 0:00:32]}  Bxf7 {[%clk 0:00:19]} 47. Rxf7 {[%clk 0:00:32]}  Ra8 {[%clk 0:00:20]} 48. Ba3 {[%clk 0:00:32]}  Kg5 {[%clk 0:00:17]} 49. Kg1 {[%clk 0:00:29]}  e5 {[%clk 0:00:14]} 50. dxe5 {[%clk 0:00:17]}  d4 {[%clk 0:00:14]} 51. cxd4 {[%clk 0:00:08]}  Rxa3 {[%clk 0:00:13]} 52. e6 {[%clk 0:00:05]}  c3 {[%clk 0:00:12]} 53. bxc3 {[%clk 0:00:03]}  b2 {[%clk 0:00:12]} 54. Rb7 {[%clk 0:00:03]}  Ra1+ {[%clk 0:00:11]} 55. Kf2 {[%clk 0:00:03]}  b1=Q {[%clk 0:00:12]} 56. Rxb1 {[%clk 0:00:03]}  Rxb1 {[%clk 0:00:13]} 57. c4 {[%clk 0:00:04]}  Kf6 {[%clk 0:00:12]} 58. d5 {[%clk 0:00:04]}  Rc1 {[%clk 0:00:12]} 0-1


[Site "https://www.chess.com"]